lending/lending_fUSD_20250210
["ID","MTS","AMOUNT","RATE_DAILY","PERIOD"]
[352591642,1739184641356,-500.0,0.00017277,2]
[352591644,1739184641365,-500.0,0.00017277,2]
[352591646,1739184641374,-500.0,0.00017277,2]
[352591648,1739184641383,-500.0,0.00017277,2]
[352591650,1739184641392,-500.0,0.00017277,2]
[352591652,1739184641401,-500.0,0.00017277,2]
[352591654,1739184641409,-500.0,0.00017277,2]
[352591656,1739184641418,-500.0,0.00017277,2]
[352591658,1739184641427,-500.0,0.00017277,2]
[352591660,1739184641436,-500.0,0.00017277,2]
[352591662,1739184641445,-500.0,0.00017277,2]
[352591664,1739184641454,-500.0,0.00017277,2]
[352591666,1739184641463,-500.0,0.00017277,2]
[352591668,1739184641472,-500.0,0.00017277,2]
[352591670,1739184641480,-500.0,0.00017277,2]
[352591672,1739184641489,-735.0,0.00017277,2]
[352591674,1739184641498,-500.0,0.00017277,2]
[352591676,1739184641507,-500.0,0.00017277,2]
[352591678,1739184641517,-500.0,0.00017277,2]
[352591680,1739184641526,-500.0,0.00017277,2]
[352591682,1739184641535,-500.0,0.00017277,2]
[352591684,1739184641544,-504.0,0.00017277,2]
[352591686,1739184641553,-10703.23407086,0.00017277,2]
[352591688,1739184641563,-150.0,0.00017281,2]
[352591690,1739184641572,-263.27699,0.00017288,7]
[352591692,1739184641581,-3859.94,0.000173,2]
[352591694,1739184641590,-1877.04,0.000173,7]
[352591696,1739184641600,-200.0,0.0001736,2]
[352591698,1739184641609,-520.83,0.00017365,2]
[352591700,1739184641618,-520.83,0.00017365,2]
[352591702,1739184641627,-520.83,0.00017365,2]
[352591704,1739184641636,-520.83,0.00017365,2]
[352591706,1739184641645,-520.83,0.00017365,2]
[352591708,1739184641653,-520.83,0.00017365,2]
[352591710,1739184641663,-520.83,0.00017365,2]
[352591712,1739184641672,-520.83,0.00017365,2]
[352591714,1739184641681,-520.83,0.00017365,2]
[352591716,1739184641690,-520.83,0.00017365,2]
[352591718,1739184641698,-520.83,0.00017365,2]
[352591720,1739184641708,-520.83,0.00017365,2]
[352591722,1739184641717,-520.83,0.00017365,2]
[352591725,1739184641726,-520.83,0.00017365,2]
[352591727,1739184641736,-520.83,0.00017365,2]
[352591729,1739184641745,-520.83,0.00017365,2]
[352591731,1739184641757,-520.83,0.00017365,2]
[352591733,1739184641767,-520.83,0.00017365,2]
[352591752,1739184641775,-520.83,0.00017365,2]
[352591754,1739184641944,-520.83,0.00017365,2]
[352591756,1739184641954,-520.83,0.00017365,2]
[352591758,1739184641963,-520.83,0.00017365,2]
[352591760,1739184641972,-520.83,0.00017365,2]
[352591762,1739184641982,-520.91,0.00017365,2]
[352591764,1739184641991,-150.0,0.00017381,2]
[352591766,1739184642000,-150.0,0.00017464,2]
[352591768,1739184642009,-150.0,0.00017464,2]
[352591770,1739184642018,-263.27699,0.00017488,7]
[352591772,1739184642027,-6977.43174111,0.00017543,2]
[352591774,1739184642037,-150.0,0.00017548,2]
[352591776,1739184642045,-500.0,0.00017551,2]
[352591778,1739184642055,-1300.0,0.00017551,2]
[352591780,1739184642063,-2100.0,0.00017551,2]
[352591782,1739184642074,-200.0,0.000176,6]
[352591784,1739184642083,-1132.65944423,0.00017643,2]
[352591785,1739184642092,-150.0,0.00017648,2]
[352591788,1739184642102,-263.27699,0.00017688,7]
[352591789,1739184642111,-500.0,0.000177,6]
[352591792,1739184642121,-500.0,0.000177,6]
[352591793,1739184642131,-150.0,0.00017715,2]
[352591795,1739184642140,-300.0,0.00017722,2]
[352591797,1739184642150,-150.0,0.00017771,2]
[352591799,1739184642159,-3085.2463855,0.00017799,2]
[352591801,1739184642169,-312.76805232,0.000178,2]
[352591803,1739184642178,-700.0,0.000178,6]
[352591805,1739184642187,-200.0,0.0001785,2]
[352591807,1739184642196,-150.0,0.00017882,2]
[352591809,1739184642206,-263.27699,0.00017888,7]
[352591811,1739184642215,-130432.33440752,0.000179,3]
[352591816,1739184642249,-27114.93857988,0.000179,3]
[352591910,1739184643155,-1127.3,0.000179,3]
[352591912,1739184643167,-560.47152291,0.000179,3]
[352592233,1739184646224,-502.62,0.00015227,2]
[352592235,1739184646233,-1108.0,0.00015503,2]
[352592237,1739184646242,-6977.43174107,0.00017694,2]
[352592239,1739184646251,-60711.94825893,0.000179,3]
[352592271,1739184646540,-18127.82626403,0.000179,3]
[352592273,1739184646552,-495.56493606,0.000179,3]
[352593643,1739185832336,-307.31279,8.699e-05,2]
[352593644,1739185832484,-550.79771,8.699e-05,2]
[352593645,1739185832494,-266.5894,8.699e-05,2]
[352593646,1739185832503,-1853.9445,8.836e-05,2]
[352593647,1739185832513,-500.0,9.719e-05,2]
[352593648,1739185832522,-152.03,0.00010137,2]
[352593649,1739185832531,-1233.13019377,0.00010137,2]
[352593650,1739185832541,-295.52285824,0.00010233,2]
[352593651,1739185832550,-295.52285825,0.00010233,2]
[352593652,1739185832559,-295.52285825,0.00010238,2]
[352593653,1739185832568,-295.52285825,0.00010278,2]
[352593654,1739185832578,-295.52285824,0.00010281,2]
[352593655,1739185832588,-295.52285824,0.00010285,2]
[352593656,1739185832597,-295.52285824,0.00010296,2]
[352593657,1739185832607,-295.52285825,0.000103,2]
[352593658,1739185832616,-863.59662,0.00011049,2]
[352593659,1739185832625,-500.0,0.00011218,2]
[352593660,1739185832634,-300.0,0.00011601,2]
[352593661,1739185832644,-6062.96053002,0.00011602,2]
[352593662,1739185832653,-420.0,0.00012741,2]
[352593663,1739185832663,-550.0,0.00013,2]
[352593664,1739185832673,-782.26,0.00013021,2]
[352593665,1739185832682,-500.0,0.00013399,2]
[352593666,1739185832692,-375.4,0.000136,2]
[352593667,1739185832701,-167.49,0.00013699,2]
[352593668,1739185832710,-467.0,0.00013992,2]
[352593669,1739185832722,-498.48,0.00014523,2]
[352593670,1739185832731,-1000.0,0.00014595,2]
[352593671,1739185832742,-1400.0,0.00014811,2]
[352593672,1739185832752,-7080.0,0.00015,2]
[352593673,1739185832762,-575.03187025,0.00015,2]
[352593674,1739185832775,-24.96812975,0.00015,2]
[352593675,1739185832786,-200.0,0.00015051,2]
[352593676,1739185832797,-8759.69911546,0.00015121,2]
[352593677,1739185832808,-167.79,0.0001522,2]
[352593678,1739185832819,-493.54,0.00015225,2]
[352593679,1739185832829,-782.26,0.00015285,2]
[352593680,1739185832840,-500.0,0.00015377,2]
[352593681,1739185832850,-200.0,0.00015388,2]
[352593682,1739185832860,-500.0,0.00015453,2]
[352593683,1739185832870,-247.0,0.00015534,2]
[352593684,1739185832879,-150.0,0.00015534,2]
[352593685,1739185832889,-150.0,0.00015534,2]
[352593686,1739185832898,-150.0,0.00015534,2]
[352593687,1739185832907,-151.61000394,0.00015534,2]
[352593689,1739185832917,-419.75879209,0.00015563,2]
[352593692,1739185832931,-582.13903436,0.00015563,2]
[352593693,1739185832941,-1007.0,0.00015564,2]
[352593694,1739185832949,-150.0,0.00015564,2]
[352593695,1739185832959,-3914.0,0.00015564,2]
[352593696,1739185832970,-500.0,0.00015907,2]
[352593697,1739185832979,-1000.0,0.00015907,2]
[352593698,1739185832988,-300.0,0.0001596,2]
[352593699,1739185832998,-150.0,0.00016,2]
[352593700,1739185833006,-342.69,0.00016063,2]
[352593701,1739185833015,-200.0,0.00016063,2]
[352593702,1739185833025,-299.99,0.00016116,4]
[352593703,1739185833034,-499.99,0.00016116,2]
[352593704,1739185833044,-3234.34642853,0.00016149,2]
[352593705,1739185833054,-1400.0,0.00016181,2]
[352593706,1739185833063,-150.0,0.00016397,2]
[352593707,1739185833073,-150.0,0.00016397,2]
[352593708,1739185833082,-1000.0,0.00016419,2]
[352593709,1739185833091,-1000.0,0.00016448,2]
[352593710,1739185833102,-498.02,0.0001645,2]
[352593711,1739185833111,-1000.0,0.0001648,2]
[352593712,1739185833121,-1000.0,0.00016525,2]
[352593713,1739185833131,-5581.94539291,0.00016558,2]
[352593714,1739185833140,-5581.94539285,0.00016626,2]
[352593715,1739185833150,-643.67,0.00016658,30]
[352593716,1739185833159,-5581.94539285,0.00016695,2]
[352593717,1739185833168,-1000.0,0.00016752,2]
[352593718,1739185833177,-5581.94539285,0.00016763,2]
[352593719,1739185833187,-672.05802031,0.00016804,2]
[352593720,1739185833197,-5581.94539285,0.00016831,2]
[352593721,1739185833206,-150.0,0.00016862,2]
[352593722,1739185833216,-5581.94539285,0.000169,2]
[352593723,1739185833227,-150.0,0.00016926,2]
[352593724,1739185833237,-2122.757,0.00016944,2]
[352593725,1739185833247,-175.222,0.00016944,2]
[352593726,1739185833257,-5581.94539285,0.00016968,2]
[352593727,1739185833267,-1000.0,0.00016979,2]
[352593728,1739185833277,-650.0,0.00017,2]
[352593729,1739185833286,-5581.94539285,0.00017036,2]
[352593730,1739185833296,-877.42,0.00017078,2]
[352593731,1739185833305,-1000.0,0.00017103,2]
[352593732,1739185833316,-5581.94539285,0.00017105,2]
[352593733,1739185833337,-150.0,0.00017108,2]
[352593734,1739185833347,-110211.01058109,0.00017111,8]
[352593738,1739185838292,-6835.36753969,0.00017111,8]
[352593739,1739185838400,-44856.63721132,0.00017111,8]
[352593740,1739185838504,-60424.99971545,0.00017111,8]
[352593929,1739185840338,-4586.97262945,0.00017111,8]
[352593931,1739185840350,-19886.67596401,0.00017111,8]
[352593947,1739185840498,-10814.16810808,0.00017111,8]
[352593959,1739185840602,-2530.45877745,0.00017111,8]
[352593966,1739185840655,-1855.07624526,0.00017111,8]
[352594531,1739185846459,-1397.55703585,0.00017111,8]
[352594548,1739185846621,-36601.07619235,0.00017111,8]
[352594549,1739185846634,-167.79,0.00017123,2]
[352594551,1739185846663,-150.0,0.00017131,2]
[352594553,1739185846732,-225.78208296,0.00017169,2]
[352594555,1739185846833,-150.0,0.00017172,2]
[352594557,1739185847004,-58619.68132463,0.00017173,2]
[352594559,1739185847084,-336.5019785,0.00017173,2]
[352594561,1739185847195,-172.55947855,0.00017173,2]
[352594563,1739185847325,-543.05262846,0.00017173,2]
[352594565,1739185847436,-5581.94539285,0.00017173,2]
[352594566,1739185847519,-23587.91300343,0.00017173,2]
[352594569,1739185847608,-150.0,0.00017206,2]
[352594570,1739185847719,-302.43330445,0.00017212,2]
[352594573,1739185847794,-150.0,0.00017216,2]
[352594576,1739185847834,-151.78,0.00017258,2]
[352594579,1739185847847,-151.78,0.00017258,2]
[352594581,1739185847859,-151.78,0.00017258,2]
[352594583,1739185847872,-151.78,0.00017258,2]
[352594585,1739185847885,-151.78,0.00017258,2]
[352594587,1739185847898,-151.78,0.00017258,2]
[352594590,1739185847909,-151.78,0.00017258,2]
[352594592,1739185847921,-151.78,0.00017258,2]
[352594594,1739185847933,-151.78,0.00017258,2]
[352594596,1739185847944,-151.78,0.00017258,2]
[352594598,1739185847955,-151.78,0.00017258,2]
[352594601,1739185847966,-151.78,0.00017258,2]
[352594603,1739185847977,-151.78,0.00017258,2]
[352594605,1739185847988,-151.78,0.00017258,2]
[352594607,1739185848001,-151.78,0.00017258,2]
[352594609,1739185848013,-151.78,0.00017258,2]
[352594611,1739185848026,-151.78,0.00017258,2]
[352594613,1739185848039,-151.78,0.00017258,2]
[352594615,1739185848053,-151.78,0.00017258,2]
[352594616,1739185848067,-151.78,0.00017258,2]
[352594617,1739185848082,-181.39759514,0.0001726,2]
[352594618,1739185848096,-220.79207821,0.0001726,2]
[352594619,1739185848109,-150.0,0.0001726,2]
[352594620,1739185848127,-1898.65902036,0.00017268,3]
[352594622,1739185848140,-112035.69582137,0.00017268,3]
[352594624,1739185848156,-298.32894509,0.00017268,3]
[352594638,1739185848262,-312.76805232,0.00017173,2]
[352594641,1739185848273,-520.12152532,0.00017268,3]
[352596063,1739186766246,6719.57979116,8e-05,2]
[352596102,1739187037466,-300.0,8.835e-05,2]
[352596103,1739187037476,-102.83410899,8.836e-05,2]
[352596104,1739187037627,-374.25799101,8.836e-05,2]
[352596105,1739187037637,-822.47852773,8.836e-05,2]
[352596106,1739187037648,-6453.79081712,8.836e-05,2]
[352596107,1739187037660,-578.75100938,8.836e-05,2]
[352596301,1739187039616,-515.17964577,8.836e-05,2]
[352596303,1739187039627,-450.01294214,9e-05,2]
[352596305,1739187039636,-12713.998086,9.67e-05,2]
[352596307,1739187039645,-500.0,9.719e-05,2]
[352596309,1739187039654,-9661.01717896,9.828e-05,2]
[352596311,1739187039664,-249.12567261,0.000101,2]
[352596312,1739187039673,-198.23870523,0.00010136,2]
[352596313,1739187039681,-396.65,0.00010137,2]
[352596314,1739187039691,-505.32,0.00010811,2]
[352596315,1739187039701,-161.71,0.00010979,2]
[352596316,1739187039714,-23900.0,0.00012356,2]
[352596317,1739187039725,-3109.84,0.00012552,2]
[352596318,1739187039735,-297.5351065,0.00012575,2]
[352596319,1739187039745,-244.2593734,0.00012575,2]
[352596320,1739187039754,-227.11594412,0.00012575,2]
[352596321,1739187039763,-150.56602609,0.00012575,2]
[352596322,1739187039778,-1013.64,0.00012677,2]
[352596323,1739187039787,-550.0,0.00013,2]
[352596325,1739187039797,-45676.12198224,0.00013,2]
[352596928,1739187045539,-516.16692249,0.00013,2]
[352596940,1739187045647,-49065.29045944,0.00013,2]
[352596943,1739187045659,-28965.58794622,0.00013,2]
[352596948,1739187045704,-10162.07225863,0.00013,2]
[352597132,1739188231662,-1198.53637903,8.836e-05,2]
[352597133,1739188231768,-357.680135,8.836e-05,2]
[352597134,1739188231780,-1565.51600315,8.836e-05,2]
[352597135,1739188231821,-1688.78328282,8.836e-05,2]
[352597136,1739188231831,-1630.94030008,8.973e-05,2]
[352597137,1739188231875,-454.92529219,8.973e-05,2]
[352597138,1739188231886,-1243.93530773,8.973e-05,2]
[352597139,1739188231896,-304.479,8.973e-05,2]
[352597140,1739188231907,-500.0,9.87e-05,2]
[352597141,1739188231917,-271.22,0.00010137,2]
[352597142,1739188231927,-150.0,0.00010192,2]
[352597143,1739188231936,-826.93,0.00010213,2]
[352597144,1739188231945,-1020.17,0.0001157,2]
[352597145,1739188231954,-1000.0,0.00011642,2]
[352597146,1739188231964,-150.00000001,0.00011688,2]
[352597147,1739188231973,-3457.27107786,0.00011804,2]
[352597148,1739188231998,-3395.24579692,0.00011804,2]
[352597149,1739188232009,-5196.42540613,0.00011804,2]
[352597150,1739188232026,-8559.0486253,0.00011804,2]
[352597372,1739188237757,-1730.02566665,0.00011804,2]
[352597373,1739188237769,-500.0,0.00011804,2]
[352597374,1739188237781,-428.23551075,0.00011804,2]
[352597375,1739188237792,-633.74791639,0.00011804,2]
[352597376,1739188237801,-200.0,0.00011804,2]
[352597377,1739188237811,-250.0,0.00011811,2]
[352597378,1739188237820,-300.0,0.00011922,2]
[352597379,1739188237830,-468.49,0.00011974,2]
[352597380,1739188237840,-250.0,0.000123,2]
[352597381,1739188237849,-166.28,0.000123,2]
[352597382,1739188237858,-2197.9,0.00012399,2]
[352597383,1739188237867,-1133.64581791,0.00012399,2]
[352597384,1739188237879,-189.47418209,0.00012399,2]
[352597385,1739188237888,-538.48548645,0.00012443,2]
[352597386,1739188237899,-1159.72051355,0.00012443,2]
[352597387,1739188237908,-175.222,0.00012443,2]
[352597388,1739188237918,-1687.54,0.00012443,2]
[352597389,1739188237927,-826.93,0.00012477,2]
[352597390,1739188237937,-167.90728906,0.00012898,2]
[352597391,1739188237947,-193.52749968,0.00012898,2]
[352597393,1739188237957,-160.55279626,0.00012898,2]
[352597395,1739188237966,-10615.07164102,0.00012898,2]
[352597552,1739188239579,-602.14764636,0.00011974,2]
[352597565,1739188239685,-2918.83195824,0.00011974,2]
[352597567,1739188239695,-7613.16804176,0.00012898,2]
[352597578,1739188239792,-477.94481277,0.00012898,2]
[352597580,1739188239804,-264.55766794,0.00012898,2]
[352597586,1739188239850,-5327.23319989,0.00012898,2]
[352597876,1739188242718,-12874.85907986,0.00012898,2]
[352597878,1739188242728,-460.88937141,0.00012898,2]
[352597880,1739188242738,-202.71613117,0.00012898,2]
[352597882,1739188242747,-193.52749968,0.00012898,2]
[352597884,1739188242755,-193.52749968,0.00012898,2]
[352597886,1739188242765,-193.52749968,0.00012899,2]
[352597888,1739188242774,-37172.83444324,0.00012899,2]
[352597890,1739188242783,-193.52749968,0.00012899,2]
[352597892,1739188242792,-193.52749968,0.00012899,2]
[352597894,1739188242801,-219.43222073,0.00012899,2]
[352597896,1739188242810,-3626.22833281,0.00012899,2]
[352597898,1739188242819,-167.90728906,0.00012899,2]
[352597900,1739188242828,-160.55279626,0.00012899,2]
[352597902,1739188242837,-193.52749968,0.00012899,2]
[352597904,1739188242846,-37172.83444324,0.00012899,2]
[352597906,1739188242856,-164.99948565,0.00012973,2]
[352597908,1739188242865,-500.0,0.00012973,2]
[352597910,1739188242875,-500.49835068,0.00012973,2]
[352597912,1739188242884,-500.0,0.00012997,2]
[352597933,1739188243072,-500.0,0.00012997,2]
[352597935,1739188243086,-500.0,0.00012997,2]
[352597937,1739188243096,-500.0,0.00012997,2]
[352597939,1739188243107,-500.0,0.00012997,2]
[352597941,1739188243116,-500.0,0.00012997,2]
[352597943,1739188243125,-500.0,0.00012997,2]
[352597945,1739188243140,-174.87988487,0.00012997,2]
[352597947,1739188243149,-500.0,0.00012997,2]
[352597949,1739188243159,-500.0,0.00012997,2]
[352597951,1739188243169,-500.0,0.00012997,2]
[352597953,1739188243178,-500.0,0.00012997,2]
[352597955,1739188243188,-949.32951018,0.00012998,3]
[352597957,1739188243197,-373487.80529113,0.00012998,3]
[352597959,1739188243209,-3851.88067642,0.00012998,3]
[352597963,1739188243230,-59183.4,0.00012998,3]
[352597965,1739188243245,-2599.444995,0.00012998,3]
[352598214,1739188245800,-507.84,0.00012898,2]
[352598217,1739188245810,-202.71613117,0.00012899,2]
[352598221,1739188245821,-513385.29580083,0.00012998,3]
[352598225,1739188245832,-11254.64470863,0.00012998,3]
[352598230,1739188245852,-2917.48794505,0.00012998,3]
[352598241,1739188245908,-19649.96368,0.00012998,3]
[352598244,1739188245921,-378.84276988,0.00012998,3]
[352598247,1739188245934,-1084.400002,0.00012998,3]
[352598260,1739188246016,-4933.7,0.00012998,3]
[352599135,1739189432086,-500.0,8.851e-05,2]
[352599136,1739189432097,-5000.0,8.973e-05,2]
[352599137,1739189432107,-300.0,9.728e-05,2]
[352599138,1739189432117,-2544.01813287,9.729e-05,2]
[352599139,1739189432127,-180.45539977,9.778e-05,2]
[352599140,1739189432136,-33741.04441198,9.778e-05,2]
[352599141,1739189432146,-784.41,0.00010081,2]
[352599142,1739189432155,-150.0,0.00010136,2]
[352599143,1739189432165,-154.89,0.00010137,2]
[352599144,1739189432175,-150.0,0.00011139,2]
[352599145,1739189432185,-200.0,0.00011427,2]
[352599146,1739189432195,-23900.0,0.00011489,2]
[352599147,1739189432204,-953.19,0.00011613,2]
[352599148,1739189432214,-1000.0,0.0001163,2]
[352599149,1739189432223,-173.64,0.00011639,2]
[352599150,1739189432233,-3731.87,0.00011769,2]
[352599151,1739189432242,-180.45539977,0.00011899,2]
[352599153,1739189432252,-500.0,0.00011919,2]
[352599155,1739189432261,-41090.99,0.00011978,2]
[352599157,1739189432271,-163.69,0.00011999,2]
[352599159,1739189432280,-174.57,0.0001207,2]
[352599161,1739189432289,-250.0,0.0001208,2]
[352599163,1739189432299,-784.41,0.00012345,2]
[352599165,1739189432308,-16948.96,0.00012893,2]
[352599167,1739189432318,-499.79,0.00012898,2]
[352599169,1739189432327,-497.3,0.00012898,2]
[352599171,1739189432337,-345.66702858,0.00012899,2]
[352599173,1739189432346,-1358.564,0.00012899,2]
[352599175,1739189432355,-175.22273098,0.00012899,2]
[352599177,1739189432365,-362.03508564,0.00012899,2]
[352599179,1739189432374,-362.03508563,0.000129,2]
[352599181,1739189432384,-1000.0,0.000129,2]
[352599183,1739189432393,-1003.0,0.000129,2]
[352599185,1739189432403,-1001.0,0.000129,2]
[352599187,1739189432413,-1000.0,0.000129,2]
[352599189,1739189432422,-362.03508563,0.000129,2]
[352599191,1739189432432,-500.0,0.00012973,2]
[352599193,1739189432442,-201.63228408,0.0001299,2]
[352599195,1739189432451,-50000.0,0.0001299,2]
[352599197,1739189432460,-30000.0,0.00012996,2]
[352599199,1739189432469,-4000.0,0.00012997,2]
[352599201,1739189432479,-500.0,0.00012998,2]
[352599203,1739189432488,-505.65067466,0.00012998,2]
[352599205,1739189432498,-184.93164746,0.00012998,2]
[352599207,1739189432507,-500.0,0.00012998,2]
[352599209,1739189432517,-500.0,0.00012998,2]
[352599211,1739189432528,-500.0,0.00012998,2]
[352599213,1739189432541,-500.0,0.00012998,2]
[352599215,1739189432551,-500.0,0.00012998,2]
[352599217,1739189432561,-500.0,0.00012998,2]
[352599219,1739189432571,-500.0,0.00012998,2]
[352599221,1739189432580,-552.40399881,0.00012998,2]
[352599223,1739189432590,-2000.0,0.00012998,2]
[352599225,1739189432599,-200.0,0.00012998,2]
[352599227,1739189432610,-474.66475509,0.00012998,3]
[352599229,1739189432621,-300.0,0.00012998,2]
[352599231,1739189432630,-300.0,0.00012998,2]
[352599233,1739189432639,-300.0,0.00012998,2]
[352599235,1739189432648,-300.0,0.00012998,2]
[352599237,1739189432657,-300.0,0.00012998,2]
[352599239,1739189432666,-666.0,0.00012998,2]
[352599241,1739189432676,-666.0,0.00012998,2]
[352599243,1739189432685,-300.0,0.00012998,2]
[352599245,1739189432694,-300.0,0.00012998,2]
[352599247,1739189432703,-666.0,0.00012998,2]
[352599249,1739189432713,-666.0,0.00012998,2]
[352599251,1739189432722,-666.0,0.00012998,2]
[352599253,1739189432731,-7364.10367993,0.00012999,2]
[352599255,1739189432740,-151.0,0.00012999,2]
[352599257,1739189432749,-151.0,0.00012999,2]
[352599259,1739189432758,-300.0,0.00012999,2]
[352599260,1739189432766,-300.0,0.00012999,2]
[352599262,1739189432776,-303.86089537,0.00012999,2]
[352599264,1739189432786,-300.0,0.00012999,2]
[352599266,1739189432795,-300.0,0.00012999,2]
[352599268,1739189432804,-666.0,0.00012999,2]
[352599270,1739189432813,-666.0,0.00012999,2]
[352599272,1739189432822,-300.0,0.00012999,2]
[352599274,1739189432831,-666.0,0.00012999,2]
[352599276,1739189432841,-151.0,0.00012999,2]
[352599278,1739189432850,-151.0,0.00012999,2]
[352599280,1739189432859,-393.554387,0.00012999,2]
[352599282,1739189432869,-224.583997,0.00012999,2]
[352599284,1739189432878,-393.554387,0.00012999,2]
[352599286,1739189432887,-224.583997,0.00012999,2]
[352599288,1739189432896,-280.907553,0.00012999,2]
[352599290,1739189432905,-280.907553,0.00012999,2]
[352599292,1739189432914,-250.138627,0.00012999,2]
[352599294,1739189432923,-151.0,0.00012999,2]
[352599296,1739189432932,-151.0,0.00012999,2]
[352599298,1739189432942,-151.0,0.00012999,2]
[352599300,1739189432952,-151.0,0.00012999,2]
[352599302,1739189432961,-151.0,0.00012999,2]
[352599304,1739189432970,-151.0,0.00012999,2]
[352599306,1739189432979,-151.0,0.00012999,2]
[352599308,1739189432989,-183.112009,0.00012999,2]
[352599310,1739189432997,-151.0,0.00012999,2]
[352599312,1739189433006,-296475.4240463,0.00012999,2]
[352599315,1739189433024,-35740.81905366,0.00012999,2]
[352599318,1739189433040,-774.34181465,0.00012999,2]
[352599320,1739189433051,-108094.63618739,0.00012999,2]
[352599322,1739189433063,-10107.22964,0.00012999,2]
[352599324,1739189433075,-2113.28286315,0.00012999,2]
[352599473,1739189437726,-409.43684972,0.00012997,2]
[352599474,1739189437736,-186.11529153,0.00012998,3]
[352599475,1739189437780,-865.32892001,0.00012998,3]
[352599476,1739189437792,-16788.58718216,0.00012998,3]
[352599651,1739189439820,-13786.63133266,0.00012998,3]
[352599658,1739189439877,-2774.56912652,0.00012998,3]
[352599670,1739189439987,-2140.1419718,0.00012998,3]
[352599676,1739189440040,-836.82778349,0.00012998,3]
[352599679,1739189440054,-886.76456812,0.00012998,3]
[352599688,1739189440129,-3172.82681859,0.00012998,3]
[352599690,1739189440144,-585.50720326,0.00012998,3]
[352599973,1739189442814,-1000.0,8.851e-05,2]
[352599976,1739189442826,-950.48907862,0.00012998,3]
[352599978,1739189442840,-938.50204307,0.00012998,3]
[352599988,1739189442920,-5513.53720349,0.00012998,3]
[352599990,1739189442934,-1816.1399873,0.00012998,3]
[352599996,1739189442977,-576.46293921,0.00012998,3]
[352600007,1739189443082,-145188.65983474,0.00012998,3]
[352600010,1739189443097,-347.72804,0.00012998,3]
[352600278,1739189445862,-729.99334585,0.00012933,2]
[352600285,1739189445916,-594.98326009,0.00012933,2]
[352600288,1739189445928,-4090.74459506,0.00012933,2]
[352600289,1739189445939,-53034.10469045,0.00012998,3]
[352600294,1739189445970,-3145.94710841,0.00012998,3]
[352600296,1739189445982,-271.51979975,0.00012998,3]
[352600313,1739189446130,-350178.90558843,0.00012998,3]
[352601172,1739189815223,-1000.0,8.851e-05,2]
[352601173,1739189894236,-492.0,0.00010264,2]
[352601174,1739189894269,-507.44,0.00010264,2]
[352601175,1739189894300,-491.46,0.00010264,2]
[352601176,1739189894331,-497.46,0.00010265,2]
[352601177,1739189894362,-504.11,0.00010265,2]
[352601178,1739189894392,-749.65,0.00010265,2]
[352601179,1739189894424,-490.52,0.00010265,2]
[352601180,1739189894455,-502.92,0.00010265,2]
[352601181,1739189894487,-507.26,0.00010265,2]
[352601182,1739189894520,-494.85,0.00010265,2]
[352601183,1739189894551,-495.17,0.00010265,2]
[352601184,1739189894582,-498.51,0.00010265,2]
[352601185,1739189894613,-497.65,0.00010265,2]
[352601186,1739189894646,-271.0,0.00010265,2]
[352601214,1739190632007,-689.41,0.0001,2]
[352601215,1739190632016,-376.81,0.00010137,2]
[352601216,1739190632026,-220.51,0.00010265,2]
[352601217,1739190632035,-494.13,0.00010266,2]
[352601218,1739190632046,-492.21,0.00010266,2]
[352601219,1739190632055,-509.0,0.00010267,2]
[352601220,1739190632064,-498.03,0.00010267,2]
[352601221,1739190632073,-509.7,0.00010268,2]
[352601222,1739190632082,-500.17,0.00010269,2]